[Event "Moscow Tal Memorial 7th"]
[Site "Moscow"]
[Date "2012.06.14"]
[Round "6"]
[White "Morozevich, Alexander"]
[Black "Nakamura, Hikaru"]
[Result "0-1"]
[ECO "D20"]
[WhiteElo "2769"]
[BlackElo "2775"]
[Annotator "Edouard,R"]
[PlyCount "94"]
[EventDate "2012.06.08"]
[EventType "tourn"]
[EventRounds "9"]
[EventCountry "RUS"]
[EventCategory "22"]
[SourceTitle "CBM 149"]
[Source "ChessBase"]
[SourceDate "2012.07.17"]
[SourceVersion "1"]
[SourceVersionDate "2012.07.17"]
[SourceQuality "1"]
[TimeControl "6000+30"]

1. d4 d5 2. c4 dxc4 3. e4 {Nowadays almost the most famous move against Queens
Gambit Accepted.} Nf6 {One of the most popular defences against the 3.e4
attack.} 4. e5 Nd5 5. Bxc4 Nb6 6. Bd3 (6. Bb3 $5 {is the other possibility.})
6... Nc6 7. Ne2 Bg4 8. f3 Be6 (8... Bh5 {which is the engine suggestion, has
also been tried in the past:} 9. Nbc3 (9. e6 fxe6 10. Nbc3 Qd7 11. Bf4 g5 $1
12. Bxg5 {was played in Al Sayed-Filippov (2010) while here probably} O-O-O {
[%cal Gh8g8] would have been best, with an unclear position.}) 9... e6 10. Be4
$5 (10. Bb5 $5 {An interesting idea played only once in 2011.} Qd7 {(maybe not
the best reaction)} 11. h4 $1 f6 12. exf6 gxf6 13. Ne4 Be7 14. Bf4 Rg8 15. Kf2
$5 O-O-O 16. Rc1 Qd5 17. Bxc6 bxc6 18. Qd3 $40 {1-0 (44) Evdokimov,A (2533)
-Papin,V (2569) Armavir RUS 2011}) 10... Bg6 11. O-O Be7 12. Be3 O-O 13. Bf2
Qd7 14. Nf4 {was unpleasant for Black in Wojtaszek-Socko (2009).}) 9. Nbc3 Qd7
(9... Bc4 {used to be sort of a main move:} 10. Bxc4 Nxc4 11. Qb3 Nb6 12. Be3
$1 (12. e6 fxe6 {followed by ...Qd7 was proven to be rather fine for Black.})
12... e6 13. O-O Nb4 (13... Qd7 14. Rad1 Nb4 15. Nf4 c6 16. Nh5 $16 {1-0 (44)
Kasimdzhanov,R (2678)-Ismagambetov,A (2500) UZB 2011}) 14. f4 $5 {[%cal Gf4f5]}
(14. Nf4 $5) 14... N4d5 15. Bd2 Qd7 16. a4 a5 17. Ne4 Bb4 $6 (17... Be7 18. Nc5
$14) 18. Nc5 Qc8 $6 19. Bxb4 Nxb4 20. f5 $1 exf5 21. e6 $18 {1-0 (25) Edouard,
R (2617)-Sumets,A (2614) FRA 2010}) 10. Ne4 Bd5 11. Nc5 Qc8 12. a3 e6 13. Qc2
Bxc5 14. dxc5 {An interesting treatment of the position, which is almost new,
but that should objectively be wrong.} ({Normally White goes} 14. Qxc5 Qd7 15.
O-O (15. Bg5 $5 h6 16. Be3 Qe7 17. Qc3 Qh4+ 18. Bf2 Qg5 19. Kf1 $5 h5 20. h4
Qe7 21. b4 a6 22. Nf4 $40 {1-0 (38) Zherebukh,Y (2541)-Tzermiadianos,A (2447)
Budapest HUN 2009}) 15... a6 16. Qc3 Ne7 {followed by ...Bc6, and Black is
extremely solid, though after} 17. b3 Bc6 18. a4 {White is supposed to be a
little bit better (after all, Black can put only one piece on the d5-square!).}
) 14... Nd7 15. f4 Bxg2 (15... Qd8 $1 {with the idea of} 16. O-O Bb3 $1 {
followed by ...Nxc5 seems immediately good for Black:} 17. Qc3 Nxc5 18. Bb5 Qd5
$8 {and probably Black is just better, e.g.} 19. Be3 Ne4 20. Bxc6+ bxc6 21. Qc1
O-O 22. Nd4 Ba4 23. b3 c5 24. Nxe6 fxe6 25. bxa4 Rad8 $15 {It is quite likely
that Morozevich studied the position after 14.dxc5 and thought chances his
opponent doesn't find 15...Qd8 were quite high, while after the text move
White has interesting ideas.}) 16. Rg1 Bf3 $5 17. Be3 $5 {White wants to
castle long as fast as possible in order to launch an attack, since for the
moment it is not so clear where Black is going to castle.} (17. Rxg7 Qd8 {
followed by ...Qh4, ...0-0-0 should be fine for Black.}) 17... g6 18. O-O-O Ne7
19. Be4 $5 {Black's bishop is a strong defensive piece, so it is obviously
interesting to get rid off it immediately, though not so logical purely
strategically speaking.} (19. Rg3 Bxe2 $5 ({The more logical} 19... Bd5 {
followed by ...c6, ...Qc7, ...0-0-0, also seems quite unclear to me.}) 20. Bxe2
c6 21. Rd6 {looks unpleasant for Black, but after} Nf5 22. Rh3 b6 {it may
happen that White is not better at all! For instance:} 23. cxb6 Nxd6 24. exd6
Nxb6 25. f5 gxf5 26. Bd4 Kd7 $132) 19... Bxe4 20. Qxe4 b6 $5 {Black needs to
find counterplay somewhere!} (20... Nd5 $5) 21. Nc3 O-O ({The less human} 21...
c6 {also makes sense:} 22. Qf3 Nd5 23. Ne4 O-O 24. cxb6 axb6 25. h4 Qa6 $1 {
and Black will go ...Nc5 at some point and White's attack might just be too
slow.}) 22. c6 Nb8 23. f5 $1 {A natural way to get counterplay. Now Black's
position is most probably fine, but unpleasant.} Nxf5 ({After} 23... Nbxc6 24.
Bg5 {White obviously has huge compensations.}) 24. Bg5 Qe8 {Black has to hurry
up not to get mated!} 25. Qf4 $5 ({The natural} 25. Rd8 {is just a draw:} Qxd8
(25... Qxc6 $2 26. Rxb8 Qxe4 27. Rxf8+ Kxf8 28. Nxe4 $16) 26. Bxd8 Rxd8 27. Nb5
a6 28. Nxc7 Ra7 29. Na8 Nxc6 30. Qxc6 Raxa8 31. Qxb6 Rdb8 $11) 25... f6 {
The most natural move, but objectively maybe a bit dubious.} (25... Qxc6 26.
Kb1 {followed by Ne4, h4, obviously gives White a strong attack, but the
position mayb be holdable for Black, e.g.} Nd7 27. Ne4 Nc5 28. Nf6+ Kh8 29. Qg4
Rg8 $1 {and after} 30. Qh3 Rg7 31. Bh6 Nxh6 32. Qxh6 {White can make a draw at
any moment (e.g. Nh5-f6) but probably nothing more.}) 26. Bxf6 Qxc6 27. Kb1 Nd7
28. Ne4 {Black's position is already very unpleasant.} Nc5 $2 (28... Rf7 $1 {
should be best:} 29. h4 $1 (29. Ng5 $6 Nxf6 $1 30. Nxf7 Nd5 31. Nh6+ Kh8 $132)
29... Nc5 30. Nf2 $1 (30. Ng5 $2 Rd7 $15) 30... Rd7 31. Rxd7 Qxd7 32. h5 {
and after} Qd4 33. Qxd4 Nxd4 34. hxg6 hxg6 35. Rh1 Rf8 $8 36. Rh8+ Kf7 37. Rh7+
Ke8 38. Rxc7 a5 {White is better but Black might be able to make a draw.}) 29.
Nxc5 $2 {A strange move, but of course this position is extremely difficult to
play for both sides.} ({After} 29. Ng5 $1 h6 (29... Nd7 $2 30. Rc1 $40) 30. h4
$1 {I believe Black has serious problems, e.g.} Qe8 (30... hxg5 31. Qxg5 Qe4+
32. Ka2 $1 Rf7 (32... Qc4+ 33. Ka1 Nb3+ 34. Kb1 $18) 33. Qxg6+ Ng7 34. Qxg7+ $1
{(not the only winning move, but definitely the strongest and most beautiful
one!)} Rxg7 35. Rxg7+ Kf8 36. Rdg1 Qc4+ 37. Kb1 Qe4+ 38. Ka1 Nb3+ 39. Ka2 $18)
(30... Rae8 31. h5 $18 {[%cal Gg5h3,Gg5f3]}) 31. Nh3 Kh7 32. h5 Rg8 $8 (32...
g5 $2 33. Rxg5 $1 hxg5 34. Nxg5+ Kg8 35. Rg1 $18) 33. hxg6+ Rxg6 34. Qf3 $1 {
and White wins, e.g.} Rb8 35. Ka2 $1 Rxg1 36. Rxg1 Qd7 37. Ng5+ hxg5 38. Qh5+
Nh6 39. Bxg5 Qd5+ 40. Ka1 Nb3+ 41. Kb1 Qd3+ 42. Ka2 Qg6 43. Qh1 Nd4 44. Be3 $18
) 29... bxc5 {Suddenly Black is completely fine.} 30. h4 Rf7 (30... Rab8 $1 {
was very strong, since after} 31. h5 $6 c4 $1 32. hxg6 h6 {followed by ...c3
White is just totally lost.}) 31. h5 Rd7 $8 32. hxg6 h6 {The right idea, but
only sort of drawing, while it could have been killing in the event of 30...
Rab8.} 33. Rxd7 Qxd7 34. Qf3 Rb8 35. Rd1 Qe8 36. Rd2 c4 37. Ka2 a5 {The
position was about equal again, but White suddenly made a big mistake.} 38. Qd1
$2 ({After something like} 38. Qc3 Qa4 39. Ka1 {nothing would happen.}) 38...
c3 $1 {White should never have allowed such a move.} 39. bxc3 Ne3 40. Qe2 $2 {
The last mistake!} (40. Qc1 Qxg6 $17) 40... Nd5 41. Qd3 a4 $1 $19 {Now White
is lost.} 42. Rb2 Rxb2+ 43. Kxb2 Qb8+ 44. Kc1 Qb3 45. Qa6 Qxc3+ 46. Kd1 Ne3+
47. Ke2 Qc4+ 0-1

[Event "Paris FIDE GP"]
[Site "Elancourt"]
[Date "2013.09.29"]
[Round "7"]
[White "Nakamura, Hikaru"]
[Black "Caruana, Fabiano"]
[Result "1-0"]
[ECO "D70"]
[WhiteElo "2772"]
[BlackElo "2779"]
[Annotator "Ramirez Alvarez,A"]
[PlyCount "67"]
[EventDate "2013.09.22"]
[EventType "tourn"]
[EventRounds "11"]
[EventCountry "FRA"]
[EventCategory "20"]
[SourceTitle "CBM 157"]
[Source "ChessBase"]
[SourceDate "2013.11.12"]
[SourceVersion "1"]
[SourceVersionDate "2013.11.12"]
[SourceQuality "1"]
[TimeControl "40/7200:20/3600:900+30"]
[WhiteClock "2:00:00"]
[BlackClock "2:00:00"]

1. d4 {[%emt 0:00:05]} Nf6 {[%emt 0:00:05]} 2. c4 {[%emt 0:00:07]} g6 {[%emt 0:
00:04]} 3. f3 {[%emt 0:00:11] An aggressive system against the Gruenfeld.
Black could transpose back into the King's Indian Defense after which White
would have already committed to the Saemisch.'} d5 {[%emt 0:00:20]} 4. cxd5 {
[%emt 0:00:07]} Nxd5 {[%emt 0:00:04]} 5. e4 {[%emt 0:00:07]} Nb6 {[%emt 0:00:
04]} 6. Nc3 {[%emt 0:00:08]} Bg7 {[%emt 0:00:06]} 7. Be3 {[%emt 0:00:04]} O-O {
[%emt 0:00:39]} 8. Qd2 {[%emt 0:00:05]} Nc6 {[%emt 0:00:54]} 9. O-O-O {[%emt 0:
00:13]} Qd6 {[%emt 0:00:18] A position of much interest in recent years.'} (
9... e5) (9... f5) 10. h4 {[%emt 0:00:06]} (10. Nb5 Qd7 11. Bh6 Bxh6 12. Qxh6
a6 13. Nc3 Nxd4 {was Sivdler-Caruana from earlier this year that ended in a
draw.}) 10... Rd8 {[%emt 0:03:10]} 11. Nb5 {[%emt 0:03:21]} Qd7 {[%emt 0:00:39]
} 12. h5 {[%emt 0:00:05]} a6 {[%emt 0:03:47]} 13. Nc3 {[%emt 0:00:17]} Nxd4 {
[%emt 0:43:22]} 14. hxg6 {[%emt 0:00:17]} hxg6 $4 {[%emt 0:08:43]
Unexplainable. Black loses disastrous amounts of material with basic tactics.'}
(14... fxg6 $8 15. g4 Qc6 $5 16. Qf2 Ne6 {Grischuk-Mamedyarov, Tal Memorial
2010. This ended in a draw.}) 15. Bxd4 {[%emt 0:04:09]} Qxd4 {[%emt 0:10:14]} (
15... Bxd4 16. Qh6 {with the simple threat of Nge2, so Black must get out of
the way and fall to the secondary threat.} Qd6 17. Rxd4 (17. Nge2 $2 Qf6 $11)
17... Qxd4 18. Qh7+ Kf8 19. Qh8+ Qxh8 20. Rxh8+ Kg7 21. Rxd8 $18 {And Black is
simply down a piece.}) 16. Qe1 {[%emt 0:01:02]} (16. Qf4) (16. Qg5 {both win
as well with the same idea.}) 16... Qxd1+ {[%emt 0:00:04]} 17. Nxd1 {[%emt 0:
00:04] Black has a rook and a pawn for a queen. That's just not enough.'} Na4 {
[%emt 0:00:07]} 18. b3 {[%emt 0:10:59]} Nc5 {[%emt 0:00:04]} 19. e5 {[%emt 0:
00:10]} Bf5 {[%emt 0:01:26]} 20. f4 {[%emt 0:01:08]} a5 {[%emt 0:02:45]} 21.
Nf3 {[%emt 0:02:07]} a4 {[%emt 0:00:13] If Caruana hadn't blundered so early
he might have resigned as soon as he lost his queen.'} 22. b4 {[%emt 0:00:07]}
Nb3+ {[%emt 0:00:25] might as well go for the desperado'} 23. axb3 {[%emt 0:01:
32]} a3 {[%emt 0:03:23]} 24. Qc3 {[%emt 0:00:46]} e6 {[%emt 0:00:47]} 25. Ne3 {
[%emt 0:02:10]} a2 {[%emt 0:02:07]} 26. Qa1 {[%emt 0:00:06]} Bf8 {[%emt 0:00:
19]} 27. Nxf5 {[%emt 0:04:24]} gxf5 {[%emt 0:00:06]} 28. b5 {[%emt 0:00:28]} c6
{[%emt 0:05:32]} 29. bxc6 {[%emt 0:04:28]} Rdc8 {[%emt 0:00:04]} 30. Bc4 {
[%emt 0:00:19]} Rxc6 {[%emt 0:00:11]} 31. Nd4 {[%emt 0:00:07]} Rcc8 {[%emt 0:
00:11]} 32. Kc2 {[%emt 0:00:29]} Bb4 {[%emt 0:00:34]} 33. g4 {[%emt 0:00:47]}
fxg4 {[%emt 0:00:26]} 34. f5 {[%emt 0:00:05] Black's run out of immediate
threats and he will get promptly mated. A big blunder for sure!'} 1-0